bitfinex/quotes_BTCUSD_20241101
["timestamp","ask_amount","ask_price","bid_price","bid_amount"]
[1730429832156,0.005,69581.0,69573.0,0.21769576]
[1730429832413,0.143723,69578.0,69573.0,0.21769576]
[1730429832618,0.143725,69577.0,69573.0,0.21769576]
[1730429832857,0.005,69575.0,69565.0,0.21769576]
[1730429833080,0.143732,69574.0,69565.0,0.21769576]
[1730429833546,0.005,69575.0,69565.0,0.21769576]
[1730429833782,0.143736,69572.0,69565.0,0.21769576]
[1730429834021,0.143743,69569.0,69559.0,0.005]
[1730429834257,0.005,69570.0,69566.0,0.21769576]
[1730429834520,0.02142045,69572.0,69566.0,0.21769576]
[1730429834748,0.005,69574.0,69563.0,0.005]
[1730429834978,0.005,69575.0,69564.0,0.21769576]
[1730429835197,0.005,69575.0,69566.0,0.287496]
[1730429835625,0.005,69575.0,69564.0,0.21769576]
[1730429835876,0.02143905,69579.0,69566.0,0.287496]
[1730429836098,0.005,69581.0,69567.0,0.13845525]
[1730429836326,0.005,69581.0,69573.0,0.143732]
[1730429836771,0.005,69581.0,69569.0,0.287484]
[1730429836772,0.005,69581.0,69571.0,0.143737]
[1730429836987,0.005,69581.0,69572.0,0.21769576]
[1730429837241,0.00082,69577.0,69572.0,0.21769576]
[1730429837488,0.00582,69577.0,69566.0,0.005]
[1730429837755,0.149545,69577.0,69571.0,0.21769576]
[1730429838006,0.143728,69576.0,69566.0,0.148748]
[1730429838213,0.00582,69577.0,69568.0,0.143743]
[1730429838432,0.00582,69577.0,69567.0,0.143745]
[1730429838433,0.00782,69577.0,69567.0,0.143745]
[1730429838668,0.151545,69577.0,69567.0,0.143745]
[1730429838894,0.151545,69577.0,69566.0,0.005]
[1730429838895,0.00582,69577.0,69566.0,0.005]
[1730429839126,0.14373,69575.0,69566.0,0.005]
[1730429839340,0.005,69576.0,69566.0,0.005]
[1730429839341,0.005,69576.0,69566.0,0.148747]
[1730429840036,0.143732,69574.0,69566.0,0.005]
[1730429840483,0.02681828,69573.0,69571.0,0.21769576]
[1730429840704,0.03754559,69572.0,69571.0,0.143738]
[1730429842064,0.01736555,69572.0,69571.0,0.28719325]
[1730429842322,0.00082,69577.0,69576.0,0.171727]
[1730429842534,0.00082,69577.0,69576.0,0.59896607]
[1730429844442,0.23914393,69599.0,69582.0,0.3984346]
[1730429844657,0.02144817,69598.0,69582.0,0.53688985]
[1730429844906,8e-05,69600.0,69582.0,0.53688985]
[1730429844907,0.01339755,69597.0,69582.0,0.53688985]
[1730429845144,0.01339755,69596.0,69582.0,0.53688985]
[1730429845430,8e-05,69600.0,69582.0,0.53688985]
[1730429845431,0.01339755,69595.0,69582.0,0.53688985]
[1730429845659,8e-05,69600.0,69595.0,0.2267196]
[1730429845876,8e-05,69600.0,69598.0,0.14368]
[1730429845877,0.01339259,69599.0,69598.0,0.14368]
[1730429846098,0.01339259,69599.0,69596.0,0.287372]
[1730429846099,0.01339259,69599.0,69596.0,0.143685]
[1730429846321,8e-05,69600.0,69595.0,0.2267196]
[1730429846322,0.01339259,69598.0,69595.0,0.2267196]
[1730429846570,0.01338787,69597.0,69595.0,0.2267196]
[1730429846802,0.01338774,69596.0,69595.0,0.39633873]
[1730429847448,0.01338774,69596.0,69595.0,0.2267196]
[1730429848171,0.01338774,69596.0,69592.0,0.005]
[1730429848393,0.01338774,69595.0,69592.0,0.005]
[1730429848611,0.01338774,69594.0,69592.0,0.005]
[1730429848835,0.01338774,69593.0,69587.0,0.3754236]
[1730429849085,0.01338774,69593.0,69576.0,0.34951622]
[1730429849086,0.005,69587.0,69577.0,0.005]
[1730429849304,0.1,69597.0,69586.0,0.21769576]
[1730429849305,0.005,69588.0,69586.0,0.21769576]
[1730429849525,0.005,69588.0,69582.0,0.2267196]
[1730429849526,0.01338241,69587.0,69582.0,0.2267196]
[1730429849764,0.01338241,69586.0,69582.0,0.2267196]
[1730429850009,0.005,69588.0,69582.0,0.2267196]
[1730429850010,0.01338241,69585.0,69582.0,0.2267196]
[1730429850241,0.01338241,69584.0,69582.0,0.2267196]
[1730429850531,0.01338241,69583.0,69582.0,0.2267196]
[1730429850746,0.01338241,69583.0,69582.0,0.3704346]
[1730429852105,0.01338241,69583.0,69582.0,0.2267196]
[1730429852597,0.01338241,69583.0,69582.0,0.30738166]
[1730429852823,0.01338241,69583.0,69582.0,0.08066206]
[1730429853056,0.01338241,69583.0,69580.0,0.143718]
[1730429853286,0.01338241,69582.0,69580.0,0.143718]
[1730429853516,0.01338241,69581.0,69579.0,0.005]
[1730429853725,0.005,69588.0,69580.0,0.143719]
[1730429853941,0.01338609,69587.0,69580.0,0.143719]
[1730429854167,0.01338609,69586.0,69580.0,0.143719]
[1730429854385,0.005,69588.0,69580.0,0.143719]
[1730429854618,0.0133946,69585.0,69580.0,0.143719]
[1730429854847,0.0267891,69584.0,69579.0,0.148721]
[1730429855090,0.0267891,69583.0,69579.0,0.148721]
[1730429855307,0.0133945,69582.0,69579.0,0.148721]
[1730429855517,0.02680274,69581.0,69579.0,0.005]
[1730429855747,0.02680274,69580.0,69579.0,0.148721]
[1730429856179,0.0133945,69580.0,69579.0,0.148721]
[1730429856412,0.02681515,69580.0,69579.0,0.148721]
[1730429856624,0.0133945,69580.0,69579.0,0.148721]
[1730429857997,0.0134281,69580.0,69579.0,0.148721]
[1730429858491,0.0134281,69580.0,69579.0,0.005]
[1730429858492,0.02686577,69580.0,69579.0,0.005]
[1730429858713,0.02687602,69580.0,69579.0,0.005]
[1730429858941,0.03762643,69580.0,69579.0,0.005]
[1730429859835,0.03762643,69580.0,69579.0,0.148721]
[1730429860307,0.02687602,69580.0,69579.0,0.298176]
[1730429860940,0.02687759,69580.0,69579.0,0.298176]
[1730429861362,0.01343801,69580.0,69579.0,0.298176]
[1730429861572,0.02687762,69580.0,69579.0,0.298176]
[1730429861783,0.01343801,69580.0,69579.0,0.298176]
[1730429862000,0.01343801,69580.0,69579.0,0.148721]
[1730429862213,0.005,69587.0,69579.0,0.150361]
[1730429862425,0.02687752,69586.0,69579.0,0.150361]
[1730429862636,0.01343875,69585.0,69579.0,0.150361]
[1730429862860,0.02687752,69584.0,69579.0,0.150361]
[1730429863072,0.02769752,69583.0,69579.0,0.150361]
[1730429863340,0.02687752,69582.0,69579.0,0.150361]
[1730429863553,0.01343875,69581.0,69579.0,0.150361]
[1730429863765,0.01343875,69580.0,69579.0,0.150361]
[1730429864643,0.01343875,69580.0,69579.0,0.00664]
[1730429865072,0.02688418,69580.0,69579.0,0.00664]
[1730429865531,0.02688418,69580.0,69579.0,0.43327125]
[1730429865749,0.01343875,69580.0,69579.0,0.43827125]
[1730429866646,0.01343875,69580.0,69579.0,0.28881625]
[1730429867540,0.01343875,69580.0,69579.0,0.00664]
[1730429867754,0.02689027,69580.0,69579.0,0.00664]
[1730429867980,0.01343875,69580.0,69579.0,0.00664]
[1730429868669,0.02689038,69580.0,69579.0,0.00664]
[1730429868875,0.01345163,69580.0,69579.0,0.00664]
[1730429869087,0.01345163,69582.0,69579.0,0.00664]
[1730429869304,0.01345163,69581.0,69579.0,0.00664]
[1730429869506,0.01345705,69581.0,69579.0,0.00664]
[1730429869745,0.01345705,69582.0,69579.0,0.00664]
[1730429869960,0.01345705,69581.0,69579.0,0.00664]
[1730429870172,0.01345705,69580.0,69579.0,0.00664]
[1730429871043,0.17063677,69580.0,69579.0,0.00164]
[1730429871501,0.02691777,69580.0,69579.0,0.00164]
[1730429871722,0.17063677,69580.0,69579.0,0.00164]
[1730429872432,0.02691777,69580.0,69579.0,0.00164]
[1730429873298,0.02691777,69580.0,69579.0,0.145361]
[1730429873515,0.02691777,69580.0,69579.0,0.00164]
[1730429874594,0.17063677,69580.0,69579.0,0.00164]
[1730429874828,0.02691777,69580.0,69579.0,0.00164]
[1730429875471,0.02691777,69580.0,69579.0,0.145361]
[1730429875687,0.02691777,69580.0,69579.0,0.00164]
[1730429876422,0.02691777,69580.0,69579.0,0.145361]
[1730429876892,0.02691886,69580.0,69579.0,0.00164]
[1730429877130,0.02691886,69580.0,69579.0,0.145361]
[1730429877371,0.32509286,69580.0,69579.0,0.00164]
[1730429877592,0.17063786,69580.0,69579.0,0.00164]
[1730429877814,0.02691886,69580.0,69579.0,0.00164]
[1730429878028,0.15717843,69580.0,69579.0,0.00164]
[1730429878250,0.01345943,69580.0,69579.0,0.00164]
[1730429879591,0.20946853,69580.0,69579.0,0.00164]
[1730429880943,0.17564567,69580.0,69579.0,0.00164]
[1730429881202,0.02692667,69580.0,69579.0,0.00164]
[1730429881451,0.17064567,69580.0,69579.0,0.00164]
[1730429881681,0.02692667,69580.0,69579.0,0.00164]
[1730429881913,0.01345943,69580.0,69579.0,0.00164]
[1730429882149,0.02748656,69581.0,69579.0,0.00164]
[1730429882384,0.01346742,69580.0,69579.0,0.00164]
[1730429883290,0.01346742,69580.0,69579.0,0.145361]
[1730429884980,0.01346829,69580.0,69579.0,0.145361]
[1730429886082,0.02693699,69580.0,69579.0,0.145361]
[1730429892622,0.00082,69583.0,69579.0,0.145361]
[1730429892623,0.00082,69583.0,69579.0,0.00164]
[1730429892841,0.0269442,69580.0,69579.0,0.00164]
[1730429893068,0.03169402,69580.0,69579.0,0.00164]
[1730429893284,0.04516612,69580.0,69579.0,0.00164]
[1730429893727,0.63407345,69580.0,69579.0,0.00164]
[1730429893947,0.98607345,69580.0,69579.0,0.00164]
[1730429894194,1.30736154,69580.0,69579.0,0.00164]
[1730429894433,1.30736154,69580.0,69557.0,0.00164]
[1730429894434,0.005,69558.0,69557.0,0.00164]
[1730429894659,0.3251632,69558.0,69557.0,0.00164]
[1730429894905,0.3251632,69558.0,69557.0,0.21933576]
[1730429894906,0.7633431,69558.0,69557.0,0.21933576]
[1730429895139,0.0184721,69558.0,69557.0,0.21933576]
[1730429895359,0.0134721,69558.0,69557.0,0.00164]
[1730429895572,0.0134721,69558.0,69557.0,0.145406]
[1730429896042,0.0134721,69558.0,69557.0,0.00164]
[1730429896257,0.01344932,69561.0,69558.0,0.143763]
[1730429896505,0.01344961,69560.0,69559.0,0.143761]
[1730429896996,0.01344961,69560.0,69558.0,0.431293]
[1730429897225,0.01344486,69559.0,69558.0,0.431293]
[1730429897437,0.005,69562.0,69557.0,0.00164]
[1730429897885,0.01344104,69561.0,69560.0,0.14376]
[1730429898556,0.01344104,69561.0,69558.0,0.145408]
[1730429898782,0.005,69559.0,69558.0,0.001644]
[1730429899212,0.01844104,69559.0,69558.0,0.001644]
[1730429899425,0.01844104,69559.0,69558.0,0.145408]
[1730429900775,0.02806514,69559.0,69558.0,0.001644]
[1730429902527,0.01844104,69559.0,69558.0,0.001644]
[1730429902753,0.01344104,69559.0,69558.0,0.145408]
[1730429903013,0.005,69560.0,69558.0,0.001644]
[1730429903219,0.007,69560.0,69558.0,0.001644]
[1730429903461,0.00848,69559.0,69558.0,0.001644]
[1730429903914,0.01548,69559.0,69558.0,0.001644]
[1730429905051,0.157242,69559.0,69558.0,0.001644]
[1730429905280,0.159242,69559.0,69558.0,0.001644]
[1730429905512,0.01348,69559.0,69558.0,0.001644]
[1730429905953,0.157242,69559.0,69558.0,0.001644]
[1730429906396,0.01348,69559.0,69558.0,0.001644]
[1730429906644,0.005,69560.0,69558.0,0.145408]
[1730429907357,0.005,69560.0,69558.0,0.001644]
[1730429909232,0.150762,69559.0,69558.0,0.001644]
[1730429910560,0.148762,69559.0,69558.0,0.001644]
[1730429911061,0.150762,69559.0,69558.0,0.001644]
[1730429911288,0.148762,69559.0,69558.0,0.001644]
[1730429912216,0.150762,69559.0,69558.0,0.001644]
[1730429912955,0.48261725,69559.0,69558.0,0.001644]
[1730429913874,0.48061725,69559.0,69558.0,0.001644]
[1730429914337,0.48261725,69559.0,69558.0,0.001644]
[1730429914548,0.48061725,69559.0,69558.0,0.001644]
[1730429914776,0.48261725,69559.0,69558.0,0.001644]
[1730429915035,0.24345525,69559.0,69558.0,0.001644]
[1730429915255,0.38721725,69559.0,69558.0,0.001644]
[1730429915903,0.24345525,69559.0,69558.0,0.001644]
[1730429916112,0.38721725,69559.0,69558.0,0.001644]
[1730429917660,0.24345525,69559.0,69558.0,0.001644]
[1730429917873,0.38721725,69559.0,69558.0,0.001644]
[1730429918581,0.24345525,69559.0,69558.0,0.001644]
[1730429918821,0.005,69559.0,69558.0,0.001644]
[1730429919494,0.01844005,69559.0,69558.0,0.001644]
[1730429922046,0.148762,69559.0,69558.0,0.001644]
[1730429922262,0.16221462,69559.0,69558.0,0.001644]
[1730429922488,0.21516738,69559.0,69558.0,0.001644]
[1730429923138,0.05795276,69559.0,69558.0,0.001644]
[1730429923352,0.005,69559.0,69558.0,0.001644]
[1730429924028,0.148762,69559.0,69558.0,0.001644]
[1730429927315,0.28921725,69559.0,69558.0,0.001644]
[1730429927532,0.28721725,69559.0,69558.0,0.001644]
[1730429928081,0.30069707,69559.0,69558.0,0.001644]
[1730429928170,0.30269707,69559.0,69558.0,0.001644]
[1730429928410,0.3026972,69559.0,69558.0,0.001644]
[1730429928850,0.30269747,69559.0,69558.0,0.001644]
[1730429929952,0.40269747,69559.0,69558.0,0.001644]
[1730429930659,0.44538668,69559.0,69558.0,0.001644]
[1730429931510,0.62138668,69559.0,69558.0,0.001644]
[1730429934185,0.60790646,69559.0,69558.0,0.001644]
[1730429934423,0.56521725,69559.0,69558.0,0.001644]
[1730429935102,0.57869235,69559.0,69558.0,0.001644]
[1730429935533,0.57869184,69559.0,69558.0,0.001644]
[1730429935742,0.66434813,69559.0,69558.0,0.001644]
[1730429936402,0.68584137,69559.0,69558.0,0.001644]
[1730429936821,0.70884137,69559.0,69558.0,0.001644]
[1730429937271,0.73033461,69559.0,69558.0,0.001644]
[1730429937495,0.64436166,69559.0,69558.0,0.001644]
[1730429937938,0.499319,69558.0,69557.0,0.00147114]
[1730429938147,0.68044407,69558.0,69557.0,0.00147114]
[1730429938852,0.67844407,69558.0,69557.0,0.00147114]
[1730429939093,0.68044407,69558.0,69557.0,0.00147114]
[1730429939769,0.80971074,69558.0,69557.0,0.00147114]
[1730429940642,0.80971513,69558.0,69557.0,0.00147114]
[1730429941552,0.68044407,69558.0,69557.0,0.00147114]
[1730429945449,0.68126607,69558.0,69557.0,0.00147114]
[1730429945669,0.6962695,69558.0,69557.0,0.00147114]
[1730429947868,0.69877009,69558.0,69557.0,0.00147114]
[1730429948972,0.721273,69558.0,69557.0,0.00147114]
[1730429949424,0.467718,69558.0,69557.0,0.00147114]
[1730429949654,0.42554759,69558.0,69557.0,0.00147114]
[1730429949863,0.42754759,69558.0,69557.0,0.00147114]
[1730429951174,0.44100234,69558.0,69557.0,0.00147114]
[1730429951393,0.04177966,69558.0,69557.0,0.00147114]
[1730429952038,0.02832491,69558.0,69557.0,0.00147114]
[1730429952252,0.0417786,69558.0,69557.0,0.00147114]
[1730429954838,0.1855426,69558.0,69557.0,0.00147114]
[1730429955046,0.24284806,69558.0,69557.0,0.00147114]
[1730429956622,0.22034515,69558.0,69557.0,0.00147114]
[1730429956830,0.23379637,69558.0,69557.0,0.00147114]
[1730429958154,0.23579637,69558.0,69557.0,0.00147114]
[1730429958570,0.23379637,69558.0,69557.0,0.00147114]
[1730429959445,0.23579372,69558.0,69557.0,0.00147114]
[1730429959659,0.23379372,69558.0,69557.0,0.00147114]
[1730429959870,0.23579372,69558.0,69557.0,0.00147114]
[1730429960558,0.23379372,69558.0,69557.0,0.00147114]
[1730429960771,0.22034259,69558.0,69557.0,0.00147114]
[1730429961944,0.23379168,69558.0,69557.0,0.00147114]
[1730429963456,0.23378614,69558.0,69557.0,0.00147114]
[1730429966647,0.02771668,69558.0,69557.0,0.14523714]
[1730429966874,0.02771668,69558.0,69557.0,0.31953714]
[1730429966875,0.01426934,69558.0,69557.0,0.31953714]
[1730429967136,0.000822,69558.0,69557.0,0.31953714]
[1730429970514,0.000822,69558.0,69557.0,0.46299239]
[1730429971286,0.000822,69579.0,69575.0,0.005]
[1730429971526,0.000822,69579.0,69578.0,0.143723]
[1730429976428,0.000822,69579.0,69576.0,0.143726]
[1730429976641,0.000822,69579.0,69575.0,0.005]
[1730429976860,0.000822,69579.0,69576.0,0.143727]
[1730429978889,0.000822,69579.0,69575.0,0.292455]
[1730429979102,0.000822,69579.0,69577.0,0.143724]
[1730429979513,0.000822,69579.0,69578.0,0.143723]
[1730429984731,0.01423338,69579.0,69578.0,0.143723]
[1730429985261,0.000822,69579.0,69578.0,0.143723]
[1730429985928,0.01423338,69579.0,69578.0,0.143723]
[1730429986365,0.000822,69579.0,69578.0,0.143723]
[1730429987008,0.01423338,69579.0,69578.0,0.143723]
[1730429987426,0.000822,69579.0,69578.0,0.143723]
[1730429988277,0.01423259,69579.0,69578.0,0.143723]
[1730429988483,0.000822,69579.0,69578.0,0.148723]
[1730429993555,0.01423882,69579.0,69578.0,0.148723]
[1730429994181,0.01423882,69579.0,69578.0,0.143723]
[1730429994383,0.000822,69579.0,69578.0,0.148723]
[1730429994599,0.01425216,69579.0,69578.0,0.148723]
[1730429996449,0.02500997,69579.0,69578.0,0.148723]
[1730429997813,0.0142749,69579.0,69578.0,0.148723]
[1730429998018,0.04656186,69579.0,69578.0,0.148723]
[1730429998222,0.02503722,69579.0,69578.0,0.148723]
[1730429998422,0.04656186,69579.0,69578.0,0.148723]
[1730430002520,0.04514886,69579.0,69578.0,0.148723]
[1730430002729,0.04514886,69579.0,69578.0,0.005]
[1730430002944,0.145729,69575.0,69574.0,0.001644]
[1730430003150,0.16525364,69575.0,69574.0,0.001644]
[1730430003358,0.03228696,69575.0,69574.0,0.001644]
[1730430004262,0.03233868,69575.0,69574.0,0.145375]
[1730430004697,0.03233693,69575.0,69574.0,0.001644]
[1730430006619,0.17806593,69575.0,69574.0,0.001644]
[1730430006820,0.17606593,69575.0,69574.0,0.001644]
[1730430007525,0.03233693,69575.0,69574.0,0.001644]
[1730430008011,0.0323304,69575.0,69574.0,0.001644]
[1730430008440,0.1760594,69575.0,69574.0,0.001644]
[1730430008649,0.15450868,69575.0,69574.0,0.001644]
[1730430009068,0.1760594,69575.0,69574.0,0.001644]
[1730430009284,0.17591711,69575.0,69574.0,0.001644]
[1730430009501,0.26918211,69579.0,69574.0,0.001644]
[1730430009716,0.143728,69576.0,69574.0,0.001644]
[1730430009923,0.02154844,69578.0,69577.0,0.143725]
[1730430010129,0.00082,69583.0,69580.0,0.143718]
[1730430010960,0.00082,69583.0,69582.0,0.143715]
[1730430013742,0.00082,69583.0,69582.0,0.153715]
[1730430013952,0.00082,69583.0,69582.0,0.44420118]
[1730430018236,0.00082,69583.0,69582.0,0.333715]
[1730430019437,0.00082,69583.0,69582.0,0.362485]
[1730430019649,0.00082,69583.0,69582.0,0.333715]
[1730430021590,0.00082,69583.0,69582.0,0.328715]
[1730430021795,0.00082,69583.0,69582.0,0.153715]
[1730430022407,0.00082,69583.0,69582.0,0.17330547]
[1730430022704,0.00082,69583.0,69582.0,0.153715]
[1730430024553,0.00082,69583.0,69582.0,0.24962499]
[1730430030776,0.00082,69583.0,69582.0,0.34553498]
[1730430032237,0.0215037,69595.0,69588.0,0.09590999]
[1730430032455,0.21851576,69596.0,69595.0,0.143688]
[1730430032668,0.22926768,69596.0,69595.0,0.143688]
[1730430032910,0.01157192,69596.0,69595.0,0.143688]
[1730430033144,0.03307576,69596.0,69595.0,0.143688]
[1730430033395,0.01157192,69596.0,69595.0,0.143688]
[1730430035679,0.01157192,69596.0,69595.0,0.23959799]
[1730430036135,0.01157192,69596.0,69590.0,0.287394]
[1730430036369,0.01075192,69595.0,69590.0,0.287394]
[1730430036606,0.01075192,69594.0,69592.0,0.287389]
[1730430036825,0.00082,69596.0,69594.0,0.143688]
[1730430037051,0.00082,69596.0,69595.0,0.143688]
[1730430038375,0.02234071,69596.0,69595.0,0.143688]
[1730430038807,0.02234071,69596.0,69592.0,0.09590999]
[1730430039027,0.02152071,69595.0,69594.0,0.143689]
[1730430042036,0.02152071,69595.0,69592.0,0.09590999]
[1730430042277,0.02152071,69594.0,69592.0,0.09590999]
[1730430042485,0.00082,69596.0,69594.0,0.143688]
[1730430043149,0.02156604,69595.0,69594.0,0.143688]
[1730430043617,0.04313208,69595.0,69594.0,0.143688]
[1730430044302,0.04313208,69595.0,69586.0,0.22269576]
[1730430044303,0.04313208,69595.0,69589.0,0.09590999]
[1730430044519,0.04313208,69595.0,69590.0,0.143697]
[1730430044520,0.14213208,69595.0,69590.0,0.143697]
[1730430044749,0.14213208,69595.0,69585.0,0.287414]
[1730430044750,0.21769576,69593.0,69580.0,0.005]
[1730430044965,0.42951208,69595.0,69581.0,0.21769576]
[1730430044966,0.09590999,69587.0,69581.0,0.21769576]
[1730430045186,0.287431,69582.0,69578.0,0.001644]
[1730430045412,0.143719,69580.0,69578.0,0.001644]
[1730430047046,0.145719,69580.0,69578.0,0.001644]
[1730430047672,0.143719,69580.0,69578.0,0.001644]
[1730430048761,0.55627425,69580.0,69578.0,0.001644]
[1730430048965,0.61291612,69580.0,69578.0,0.001644]
[1730430050432,0.6263588,69580.0,69578.0,0.001644]
[1730430050653,0.6243588,69580.0,69578.0,0.001644]
[1730430051553,0.63979496,69580.0,69578.0,0.001644]
[1730430051987,0.63779496,69580.0,69578.0,0.001644]
[1730430052233,0.63979496,69580.0,69578.0,0.001644]
[1730430054084,0.58315309,69580.0,69578.0,0.001644]
[1730430054527,0.17059784,69580.0,69578.0,0.15110958]
[1730430054773,0.02687884,69580.0,69579.0,0.145365]
[1730430055248,0.01344268,69580.0,69579.0,0.145365]
[1730430055483,0.01342016,69586.0,69581.0,0.143716]
[1730430055736,0.02684036,69585.0,69583.0,0.143713]
[1730430055983,0.000822,69589.0,69588.0,0.143702]
[1730430056214,0.01424132,69589.0,69588.0,0.29316758]
[1730430056470,0.02766063,69589.0,69588.0,0.29316758]
[1730430060441,0.02766063,69589.0,69588.0,0.143702]
[1730430060939,0.01424132,69589.0,69588.0,0.29316758]
[1730430061169,0.01424132,69589.0,69588.0,0.29816758]
[1730430061424,0.01424132,69589.0,69588.0,0.30316758]
[1730430061425,0.000822,69589.0,69588.0,0.30316758]
[1730430061885,0.000822,69589.0,69588.0,0.46626758]
[1730430061892,0.000822,69589.0,69588.0,0.148702]
[1730430062586,0.000822,69589.0,69587.0,0.143703]
[1730430062812,0.000822,69589.0,69583.0,0.143711]
[1730430062813,0.144524,69589.0,69583.0,0.143711]
[1730430063084,0.03055689,69588.0,69582.0,0.21769576]
[1730430063331,0.0134203,69587.0,69585.0,0.005]
[1730430063567,0.0134203,69587.0,69586.0,0.143707]
[1730430064021,0.000822,69589.0,69586.0,0.143707]
[1730430064238,0.000822,69589.0,69588.0,0.143702]
[1730430064464,0.0142423,69589.0,69587.0,0.143704]
[1730430064675,0.0134203,69588.0,69587.0,0.143704]
[1730430064891,0.000822,69589.0,69588.0,0.001644]
[1730430065116,0.000822,69589.0,69588.0,0.145346]
[1730430066193,0.000822,69589.0,69588.0,0.001644]
[1730430066613,0.000822,69589.0,69588.0,0.145346]
[1730430066839,0.000822,69589.0,69588.0,0.001644]
[1730430067264,0.01424499,69589.0,69588.0,0.001644]
[1730430068585,0.000822,69589.0,69588.0,0.001644]
[1730430068805,0.01424813,69589.0,69588.0,0.001644]
[1730430071103,0.027676,69589.0,69588.0,0.001644]
[1730430071571,0.24537176,69589.0,69588.0,0.001644]
[1730430071728,0.67216782,69589.0,69588.0,0.001644]
[1730430072293,0.63221992,69589.0,69588.0,0.001644]
[1730430072680,0.65521992,69589.0,69588.0,0.001644]
[1730430074228,0.66397164,69589.0,69588.0,0.001644]
[1730430075758,0.65053661,69589.0,69588.0,0.001644]
[1730430076014,0.66396765,69589.0,69588.0,0.001644]
[1730430076701,0.58633933,69589.0,69588.0,0.001644]
[1730430076889,0.58433933,69589.0,69588.0,0.001644]
[1730430077351,0.58633933,69589.0,69588.0,0.001644]
[1730430078039,0.41183933,69589.0,69588.0,0.001644]
[1730430078271,0.40983933,69589.0,69588.0,0.001644]
[1730430078917,0.41183933,69589.0,69588.0,0.001644]
[1730430079320,0.3984047,69589.0,69588.0,0.001644]
[1730430079545,0.40983215,69589.0,69588.0,0.001644]
[1730430080233,0.41183215,69589.0,69588.0,0.001644]
[1730430080461,0.30983215,69589.0,69588.0,0.001644]
[1730430082927,0.29641292,69589.0,69588.0,0.001644]
[1730430083138,0.50634859,69589.0,69588.0,0.001644]
[1730430083355,0.58844859,69589.0,69588.0,0.001644]
[1730430084706,0.61144859,69589.0,69588.0,0.001644]
[1730430086344,0.58457725,69589.0,69588.0,0.001644]
[1730430086572,0.61145931,69589.0,69588.0,0.001644]
[1730430087223,0.48995931,69589.0,69588.0,0.001644]
[1730430087438,0.49195931,69589.0,69588.0,0.001644]
[1730430089965,0.49195978,69589.0,69588.0,0.001644]
[1730430090183,0.58485978,69589.0,69588.0,0.001644]
[1730430090427,0.62786927,69589.0,69588.0,0.001644]
[1730430091536,0.67087877,69589.0,69588.0,0.001644]
[1730430091750,0.71538352,69589.0,69588.0,0.001644]
[1730430092189,0.71531167,69589.0,69588.0,0.001644]
[1730430092616,0.60778793,69589.0,69588.0,0.001644]
[1730430093291,0.59434643,69589.0,69588.0,0.001644]
[1730430093503,0.60779132,69589.0,69588.0,0.001644]
[1730430094786,0.71533539,69589.0,69588.0,0.001644]
[1730430095200,0.60779132,69589.0,69588.0,0.001644]
[1730430096132,0.62279475,69589.0,69588.0,0.001644]
[1730430096831,0.66537051,69589.0,69588.0,0.001644]
[1730430098319,0.66537051,69589.0,69579.0,0.001644]
[1730430098552,1.12560541,69580.0,69579.0,0.001644]
[1730430098756,1.00303383,69580.0,69579.0,0.001644]
[1730430098965,1.04560151,69580.0,69579.0,0.001644]
[1730430099409,1.04560151,69580.0,69579.0,1e-06]
[1730430099630,0.268721,69579.0,69578.0,1e-06]
[1730430099857,0.65253793,69579.0,69578.0,1e-06]
[1730430101194,0.352,69568.0,69567.0,0.21769576]
[1730430101414,1.00945883,69568.0,69567.0,0.21769576]
[1730430101631,0.252,69560.0,69548.0,0.21769576]
[1730430101847,0.68630925,69560.0,69548.0,0.21769576]
[1730430102096,0.68630925,69560.0,69559.0,0.00215547]
[1730430103169,0.68879749,69560.0,69559.0,0.00215547]
[1730430103916,0.68877407,69560.0,69559.0,0.00215547]
[1730430104127,0.68877407,69560.0,69548.0,0.21769576]
[1730430104128,0.245764,69558.0,69548.0,0.21769576]
[1730430104339,0.64305541,69558.0,69548.0,0.21769576]
[1730430105210,0.56055088,69558.0,69548.0,0.21769576]
[1730430105428,0.4110853,69558.0,69548.0,0.21769576]
[1730430106276,0.39765001,69558.0,69548.0,0.21769576]
[1730430106481,0.40941925,69558.0,69548.0,0.21769576]
[1730430106893,0.40741925,69558.0,69549.0,0.0992]
[1730430107114,0.40741925,69558.0,69551.0,0.14946558]
[1730430107115,0.38221925,69558.0,69551.0,0.14946558]
[1730430107336,0.38221925,69558.0,69553.0,0.0806]
[1730430108612,0.38421925,69558.0,69553.0,0.0806]
[1730430108827,0.38221925,69558.0,69553.0,0.0806]
[1730430109260,0.61158483,69558.0,69539.0,0.005]
[1730430109486,0.63842938,69558.0,69546.0,0.005]
[1730430109708,0.46211925,69558.0,69546.0,0.005]
[1730430110160,0.38421925,69558.0,69546.0,0.005]
[1730430110828,0.39764237,69558.0,69546.0,0.005]
[1730430111080,0.39764237,69558.0,69546.0,0.25116558]
[1730430111081,0.38421925,69558.0,69546.0,0.25116558]
[1730430111302,0.38421925,69558.0,69551.0,0.0765]
[1730430111952,0.00248824,69560.0,69557.0,0.00647114]
[1730430112195,0.21769576,69569.0,69559.0,0.23506558]
[1730430112432,0.143757,69562.0,69559.0,0.23506558]
[1730430112858,0.01342235,69561.0,69559.0,0.23506558]
[1730430113298,0.14376,69560.0,69559.0,0.0856]
[1730430113516,0.143764,69558.0,69557.0,0.00147114]
[1730430113740,0.15718635,69558.0,69557.0,0.00147114]
[1730430115104,0.2976416,69558.0,69557.0,0.00147114]
[1730430115311,0.3976416,69558.0,69557.0,0.00147114]
[1730430115530,0.4515878,69558.0,69557.0,0.00147114]
[1730430115743,0.43816545,69558.0,69557.0,0.00147114]
[1730430119502,0.43616545,69558.0,69557.0,0.00147114]
[1730430119721,0.39565364,69558.0,69557.0,0.00147114]
[1730430120795,0.38221925,69558.0,69557.0,0.00147114]
[1730430121014,0.38421925,69558.0,69557.0,0.00147114]
[1730430121893,0.53368483,69558.0,69557.0,0.00147114]
[1730430122103,0.61268483,69558.0,69557.0,0.00147114]
[1730430122322,0.86268483,69558.0,69557.0,0.00147114]
[1730430126010,0.88568483,69558.0,69557.0,0.00147114]
[1730430126223,1.02322559,69558.0,69557.0,0.00147114]
[1730430127584,1.03822902,69558.0,69557.0,0.00147114]